fUST/lending_fUST_20250603
["ID","MTS","AMOUNT","RATE_DAILY","PERIOD"]
[363958729,1748946653103,-440.0,0.00020547,2]
[363958731,1748946653112,-440.0,0.00020547,2]
[363958733,1748946653121,-969.47,0.00020547,2]
[363958735,1748946653131,-1793.76,0.00020547,2]
[363958737,1748946653140,-1500.0,0.00020549,2]
[363958739,1748946653149,-1694.5720177,0.00020555,3]
[363958741,1748946653158,-648.87,0.000206,2]
[363958743,1748946653169,-3677.48,0.000206,2]
[363958745,1748946653178,-52509.83,0.000206,2]
[363958747,1748946653187,-500.91748917,0.00020625,2]
[363958749,1748946653197,-962.0,0.00020637,2]
[363958751,1748946653208,-405.0,0.00020637,2]
[363958753,1748946653217,-2225.0,0.00020637,2]
[363958755,1748946653227,-709.0,0.00020637,2]
[363958757,1748946653236,-1004.7554611,0.00020788,2]
[363958759,1748946653246,-1694.5720177,0.00020797,4]
[363958761,1748946653256,-440.0,0.00020821,2]
[363958763,1748946653266,-440.0,0.00020821,2]
[363958765,1748946653275,-342.21521261,0.00020821,2]
[363958767,1748946653284,-459.47649026,0.00020821,2]
[363958769,1748946653293,-440.0,0.00020821,2]
[363958771,1748946653303,-435.22023642,0.00020821,2]
[363958773,1748946653313,-15951.04,0.00020821,2]
[363958775,1748946653322,-440.0,0.00020821,2]
[363958777,1748946653331,-1331.65,0.00020821,2]
[363958779,1748946653341,-522.81323822,0.00020821,2]
[363958781,1748946653351,-487.26,0.00020821,2]
[363958783,1748946653360,-1206.48,0.00020821,2]
[363958785,1748946653370,-512.8,0.00020821,2]
[363958786,1748946653379,-4509.62,0.00020821,2]
[363958789,1748946653389,-767.81,0.00020821,2]
[363958791,1748946653399,-1889.79,0.00020821,2]
[363958792,1748946653408,-2287.16,0.00020821,2]
[363958794,1748946653418,-1333.43,0.00020821,2]
[363958796,1748946653428,-2420.97,0.00020821,2]
[363958798,1748946653437,-1785.97,0.00020821,2]
[363958801,1748946653447,-442.15,0.00020821,2]
[363958802,1748946653456,-490.58,0.00020821,2]
[363958804,1748946653466,-637.93,0.00020821,2]
[363958807,1748946653476,-655.59,0.00020821,2]
[363958808,1748946653486,-738.86,0.00020821,2]
[363958811,1748946653495,-440.0,0.00020821,2]
[363958812,1748946653505,-440.0,0.00020821,2]
[363958814,1748946653517,-921.6,0.00020821,2]
[363958816,1748946653528,-648.26,0.00020821,2]
[363958818,1748946653537,-812.28,0.00020821,2]
[363958820,1748946653547,-1085.16,0.00020821,2]
[363958822,1748946653558,-440.0,0.00020821,2]
[363958824,1748946653567,-440.0,0.00020821,2]
[363958826,1748946653576,-440.0,0.00020821,2]
[363958828,1748946653586,-969.47,0.00020821,2]
[363958830,1748946653597,-1793.76,0.00020821,2]
[363958832,1748946653606,-1700.83630908,0.00021,2]
[363958843,1748946653616,-1800.0,0.00021014,2]
[363958846,1748946653717,-1694.5720177,0.00021038,4]
[363958848,1748946653727,-228.277107,0.00021095,2]
[363958850,1748946653736,-228.277107,0.00021095,2]
[363958851,1748946653745,-440.0,0.00021095,2]
[363958853,1748946653755,-688.05,0.00021095,3]
[363958856,1748946653764,-440.0,0.00021095,2]
[363958858,1748946653774,-440.0,0.00021095,2]
[363958859,1748946653784,-15951.04,0.00021095,2]
[363958861,1748946653794,-440.0,0.00021095,2]
[363958864,1748946653803,-1331.65,0.00021095,2]
[363958865,1748946653812,-487.26,0.00021095,2]
[363958867,1748946653822,-1206.48,0.00021095,2]
[363958869,1748946653832,-512.8,0.00021095,2]
[363958871,1748946653842,-4509.62,0.00021095,2]
[363958874,1748946653851,-767.81,0.00021095,2]
[363958876,1748946653861,-1889.79,0.00021095,2]
[363958877,1748946653871,-2287.16,0.00021095,2]
[363958879,1748946653880,-1333.43,0.00021095,2]
[363958881,1748946653893,-2420.97,0.00021095,2]
[363958883,1748946653902,-1785.97,0.00021095,2]
[363958885,1748946653912,-442.15,0.00021095,2]
[363958887,1748946653922,-490.58,0.00021095,2]
[363958889,1748946653931,-637.93,0.00021095,2]
[363958891,1748946653942,-655.59,0.00021095,2]
[363958893,1748946653952,-738.86,0.00021095,2]
[363958895,1748946653962,-440.0,0.00021095,2]
[363958897,1748946653972,-440.0,0.00021095,2]
[363958900,1748946653982,-921.6,0.00021095,2]
[363958902,1748946653992,-648.26,0.00021095,2]
[363958903,1748946654002,-812.28,0.00021095,2]
[363958905,1748946654012,-1085.16,0.00021095,2]
[363958908,1748946654024,-440.0,0.00021095,2]
[363958910,1748946654034,-321.16125937,0.00021095,2]
[363958912,1748946654043,-440.0,0.00021095,2]
[363958914,1748946654053,-969.47,0.00021095,2]
[363958916,1748946654064,-1793.76,0.00021095,2]
[363958918,1748946654074,-2000.0,0.00021097,2]
[363958920,1748946654084,-6317.93736951,0.00021269,2]
[363958922,1748946654095,-1694.5720177,0.00021279,5]
[363958924,1748946654105,-181.2,0.0002135,2]
[363958926,1748946654115,-181.2,0.0002135,2]
[363958928,1748946654124,-3580.08648,0.0002135,2]
[363958930,1748946654135,-3580.08648,0.0002135,2]
[363958932,1748946654144,-209.487149,0.00021369,2]
[363958934,1748946654154,-209.487149,0.00021369,2]
[363958936,1748946654164,-716.24086,0.00021369,2]
[363958938,1748946654173,-716.24086,0.00021369,2]
[363958940,1748946654184,-440.0,0.00021369,2]
[363958942,1748946654194,-440.0,0.00021369,2]
[363958944,1748946654205,-440.0,0.00021369,2]
[363958946,1748946654215,-15951.04,0.00021369,2]
[363958948,1748946654225,-440.0,0.00021369,2]
[363958950,1748946654235,-1331.65,0.00021369,2]
[363958952,1748946654245,-487.26,0.00021369,2]
[363958954,1748946654259,-1206.48,0.00021369,2]
[363958956,1748946654270,-512.8,0.00021369,2]
[363958958,1748946654280,-4509.62,0.00021369,2]
[363958960,1748946654290,-767.81,0.00021369,2]
[363958962,1748946654299,-2287.16,0.00021369,2]
[363958964,1748946654310,-1889.79,0.00021369,2]
[363958966,1748946654320,-1333.43,0.00021369,2]
[363958968,1748946654330,-2420.97,0.00021369,2]
[363958970,1748946654339,-1785.97,0.00021369,2]
[363958972,1748946654349,-442.15,0.00021369,2]
[363958974,1748946654359,-490.58,0.00021369,2]
[363958976,1748946654369,-637.93,0.00021369,2]
[363958978,1748946654379,-655.59,0.00021369,2]
[363958980,1748946654389,-738.86,0.00021369,2]
[363958982,1748946654398,-423.05100329,0.00021369,2]
[363958984,1748946654408,-440.0,0.00021369,2]
[363958986,1748946654418,-921.6,0.00021369,2]
[363958988,1748946654428,-648.26,0.00021369,2]
[363958990,1748946654438,-812.28,0.00021369,2]
[363958992,1748946654447,-1085.16,0.00021369,2]
[363958994,1748946654457,-440.0,0.00021369,2]
[363958996,1748946654467,-440.0,0.00021369,2]
[363958998,1748946654478,-969.47,0.00021369,2]
[363959000,1748946654487,-1793.76,0.00021369,2]
[363959001,1748946654497,-917.81,0.00021403,2]
[363959003,1748946654507,-152.0,0.00021452,2]
[363959005,1748946654520,-2753.85,0.00021458,2]
[363959007,1748946654530,-12433.27353641,0.000215,2]
[363959009,1748946654539,-917.81,0.00021503,2]
[363959011,1748946654551,-1694.5720177,0.00021521,5]
[363959013,1748946654561,-162967.24567,0.00021559,2]
[363959015,1748946654570,-181.2,0.0002156,2]
[363959017,1748946654580,-181.2,0.0002156,2]
[363959019,1748946654590,-3580.08648,0.0002156,2]
[363959021,1748946654601,-3580.08648,0.0002156,2]
[363959023,1748946654611,-4000.0,0.00021562,2]
[363959025,1748946654620,-1800.0,0.00021562,2]
[363959027,1748946654631,-6317.93736942,0.00021581,2]
[363959029,1748946654640,-917.81,0.00021603,2]
[363959031,1748946654651,-440.0,0.00021643,2]
[363959033,1748946654660,-688.05,0.00021643,4]
[363959035,1748946654670,-440.0,0.00021643,2]
[363959037,1748946654680,-440.0,0.00021643,2]
[363959039,1748946654689,-15951.04,0.00021643,2]
[363959041,1748946654699,-277.67,0.00021643,2]
[363959043,1748946654708,-1331.65,0.00021643,2]
[363959045,1748946654718,-487.26,0.00021643,2]
[363959047,1748946654728,-1206.48,0.00021643,2]
[363959049,1748946654738,-512.8,0.00021643,2]
[363959051,1748946654747,-4509.62,0.00021643,2]
[363959053,1748946654757,-767.81,0.00021643,2]
[363959055,1748946654766,-2287.16,0.00021643,2]
[363959057,1748946654776,-1889.79,0.00021643,2]
[363959059,1748946654786,-1333.43,0.00021643,2]
[363959061,1748946654795,-2420.97,0.00021643,2]
[363959063,1748946654805,-164.96506702,0.00021643,2]
[363959065,1748946654816,-1785.97,0.00021643,2]
[363959067,1748946654826,-442.15,0.00021643,2]
[363959069,1748946654837,-490.58,0.00021643,2]
[363959072,1748946654847,-637.93,0.00021643,2]
[363959074,1748946654858,-655.59,0.00021643,2]
[363959076,1748946654868,-738.86,0.00021643,2]
[363959078,1748946654878,-440.0,0.00021643,2]
[363959080,1748946654887,-921.6,0.00021643,2]
[363959082,1748946654897,-648.26,0.00021643,2]
[363959084,1748946654907,-812.28,0.00021643,2]
[363959086,1748946654916,-1085.16,0.00021643,2]
[363959088,1748946654927,-440.0,0.00021643,2]
[363959090,1748946654936,-440.0,0.00021643,2]
[363959092,1748946654945,-969.47,0.00021643,2]
[363959094,1748946654955,-1793.76,0.00021643,2]
[363959095,1748946654965,-2500.0,0.00021645,2]
[363959097,1748946654976,-5000.0,0.00021689,2]
[363959099,1748946654985,-52509.83,0.000217,2]
[363959101,1748946654994,-38049.81747881,0.000217,2]
[363959104,1748946655005,-917.81,0.00021703,2]
[363959106,1748946655015,-215.0738,0.00021734,2]
[363959108,1748946655026,-1694.5720177,0.00021762,5]
[363959110,1748946655036,-2000.0,0.00021786,2]
[363959112,1748946655047,-3677.48,0.000218,2]
[363959114,1748946655056,-151.0,0.000218,3]
[363959116,1748946655067,-917.81,0.00021803,2]
[363959118,1748946655076,-2000.0,0.00021886,2]
[363959120,1748946655086,-6317.93736942,0.00021894,2]
[363959122,1748946655096,-917.81,0.00021903,2]
[363959124,1748946655105,-228.277107,0.00021917,2]
[363959126,1748946655116,-228.277107,0.00021917,2]
[363959128,1748946655125,-500.0,0.00021917,2]
[363959130,1748946655135,-403.36431858,0.00021917,2]
[363959132,1748946655144,-440.0,0.00021917,2]
[363959134,1748946655154,-440.0,0.00021917,2]
[363959136,1748946655163,-15951.04,0.00021917,2]
[363959138,1748946655174,-1331.65,0.00021917,2]
[363959140,1748946655187,-487.26,0.00021917,2]
[363959142,1748946655199,-1206.48,0.00021917,2]
[363959144,1748946655209,-512.8,0.00021917,2]
[363959146,1748946655218,-4509.62,0.00021917,2]
[363959148,1748946655228,-767.81,0.00021917,2]
[363959150,1748946655238,-2287.16,0.00021917,2]
[363959152,1748946655248,-1889.79,0.00021917,2]
[363959154,1748946655258,-1333.43,0.00021917,2]
[363959156,1748946655268,-2420.97,0.00021917,2]
[363959158,1748946655278,-1785.97,0.00021917,2]
[363959160,1748946655288,-442.15,0.00021917,2]
[363959162,1748946655298,-490.58,0.00021917,2]
[363959164,1748946655309,-637.93,0.00021917,2]
[363959166,1748946655319,-655.59,0.00021917,2]
[363959168,1748946655328,-738.86,0.00021917,2]
[363959170,1748946655338,-342.08,0.00021917,2]
[363959172,1748946655347,-921.6,0.00021917,2]
[363959174,1748946655358,-648.26,0.00021917,2]
[363959176,1748946655370,-812.28,0.00021917,2]
[363959178,1748946655379,-1085.16,0.00021917,2]
[363959180,1748946655390,-440.0,0.00021917,2]
[363959182,1748946655399,-301.5977401,0.00021917,2]
[363959184,1748946655410,-969.47,0.00021917,2]
[363959185,1748946655419,-1793.76,0.00021917,2]
[363959186,1748946655429,-3195.25059897,0.00021946,2]
[363959187,1748946655438,-209.487149,0.00022,7]
[363959188,1748946655449,-209.487149,0.00022,7]
[363959189,1748946655459,-716.24086,0.00022,7]
[363959190,1748946655468,-716.24086,0.00022,7]
[363959191,1748946655478,-20065.69749546,0.00022,7]
[363959264,1748946656189,-401.27644943,0.00016438,2]
[363959266,1748946656199,-440.0,0.00016438,2]
[363959268,1748946656208,-448.96726207,0.00016438,2]
[363959270,1748946656218,-350.0,0.00016438,2]
[363959272,1748946656227,-440.0,0.00016438,2]
[363959274,1748946656238,-500.0,0.00016709,2]
[363959276,1748946656247,-597.3109701,0.00016709,2]
[363959278,1748946656256,-500.0,0.00016709,2]
[363959280,1748946656266,-500.0,0.00016709,2]
[363959282,1748946656275,-500.0,0.00016709,2]
[363959284,1748946656285,-500.0,0.00016709,2]
[363959286,1748946656295,-500.0,0.00016709,2]
[363959289,1748946656304,-500.0,0.00016709,2]
[363959291,1748946656314,-515.78172546,0.00016709,2]
[363959293,1748946656323,-500.0,0.00016709,2]
[363959294,1748946656333,-500.0,0.00016709,2]
[363959295,1748946656342,-205.049756,0.00016709,2]
[363959296,1748946656351,-500.0,0.00016709,2]
[363959297,1748946656360,-500.0,0.00016709,2]
[363959298,1748946656369,-289.07947552,0.00016709,2]
[363959299,1748946656378,-500.0,0.00016709,2]
[363959300,1748946656387,-500.0,0.00016709,2]
[363959301,1748946656396,-500.0,0.00016709,2]
[363959302,1748946656406,-500.0,0.00016709,2]
[363959303,1748946656415,-500.0,0.00016709,2]
[363959304,1748946656424,-500.0,0.00016709,2]
[363959305,1748946656433,-500.0,0.00016709,2]
[363959306,1748946656442,-500.0,0.00016709,2]
[363959307,1748946656451,-500.0,0.00016709,2]
[363959308,1748946656460,-500.0,0.00016709,2]
[363959309,1748946656468,-500.0,0.00016709,2]
[363959310,1748946656478,-339.55837407,0.00016709,2]
[363959311,1748946656487,-500.0,0.00016709,2]
[363959312,1748946656496,-311.17407017,0.00016709,2]
[363959313,1748946656505,-500.0,0.00016709,2]
[363959314,1748946656519,-500.0,0.00016709,2]
[363959315,1748946656527,-500.0,0.00016709,2]
[363959316,1748946656536,-500.0,0.00016709,2]
[363959317,1748946656545,-500.0,0.00016709,2]
[363959318,1748946656554,-500.0,0.00016709,2]
[363959319,1748946656563,-500.0,0.00016709,2]
[363959320,1748946656572,-500.0,0.00016709,2]
[363959321,1748946656581,-500.0,0.00016709,2]
[363959322,1748946656590,-500.0,0.00016709,2]
[363959323,1748946656599,-500.0,0.00016709,2]
[363959324,1748946656608,-500.0,0.00016709,2]
[363959325,1748946656617,-500.0,0.00016709,2]
[363959326,1748946656626,-255.28089981,0.00016709,2]
[363959327,1748946656634,-500.0,0.00016709,2]
[363959328,1748946656644,-500.0,0.00016709,2]
[363959329,1748946656653,-440.0,0.00016712,2]
[363959330,1748946656662,-440.0,0.00016712,2]
[363959331,1748946656671,-483.10685768,0.00016986,2]
[363959332,1748946656681,-440.0,0.00016986,2]
[363959333,1748946656690,-219.41773825,0.0001726,2]
[363959334,1748946656700,-440.0,0.00017808,2]
[363959335,1748946656709,-440.0,0.00018082,2]
[363959336,1748946656718,-440.0,0.00018356,2]
[363959337,1748946656727,-440.0,0.0001863,2]
[363959338,1748946656737,-440.0,0.00018904,2]
[363959339,1748946656746,-440.0,0.00019178,2]
[363959340,1748946656756,-298.3212153,0.00019452,2]
[363959341,1748946656765,-40934.30250454,0.00022,7]
[363959342,1748946656775,-2442.61,0.00022,2]
[363959343,1748946656784,-22107.21948473,0.00022,7]
[363959344,1748946656797,-15264.77282349,0.00022,7]
[363959345,1748946656808,-47890.66769178,0.00022,7]
[363959346,1748946656818,-12670.76136593,0.00022,7]
[363959347,1748946656827,-842.5625,0.00022,7]
[363959348,1748946656837,-6727.84353311,0.00022,2]
[363960552,1748946857100,514.61608827,0.00015945,2]
[363960557,1748947050618,378.098461,0.00015584,2]
[363960560,1748947127733,216.041203,0.00013699,2]
[363960562,1748947159036,163.82309991,0.00015945,2]
[363960573,1748947546649,8599.99,0.00024658,120]
[363960574,1748947585794,10000.0,0.00015437,2]
[363960576,1748947630850,391.5851894,0.00015435,2]
[363960630,1748947831888,-210.116677,0.00016211,2]
[363960632,1748947831898,-181.05793227,0.00016337,2]
[363960634,1748947831908,-159.53536825,0.00016338,2]
[363960636,1748947831917,-300.0,0.00016427,2]
[363960638,1748947831931,-300.0,0.00016427,2]
[363960640,1748947831940,-69.03315763,0.00016428,3]
[363960643,1748947831953,-1013.80684237,0.00016428,3]
[363960644,1748947831962,-541.42,0.00016428,3]
[363960645,1748947831973,-270.71,0.00016428,3]
[363960646,1748947831984,-365.56714715,0.00016428,3]
[363960647,1748947831995,-446.57285285,0.00016428,3]
[363960648,1748947832006,-322.17293912,0.00016437,2]
[363960649,1748947832030,-47905.8519907,0.00016437,2]
[363960650,1748947832040,-160.0,0.00016437,2]
[363960651,1748947832049,-500.0,0.00016437,2]
[363960652,1748947832059,-176.37316151,0.00016437,2]
[363960653,1748947832069,-500.0,0.00016437,2]
[363960654,1748947832078,-198.78660839,0.00016437,2]
[363960655,1748947832088,-500.0,0.00016437,2]
[363960656,1748947832097,-500.0,0.00016437,2]
[363960658,1748947832107,-500.0,0.00016437,2]
[363960660,1748947832116,-312.35267446,0.00016437,2]
[363960662,1748947832126,-500.0,0.00016437,2]
[363960664,1748947832135,-389.98120399,0.00016437,2]
[363960666,1748947832145,-361.69787776,0.00016437,2]
[363960668,1748947832155,-500.0,0.00016437,2]
[363960670,1748947832164,-500.0,0.00016437,2]
[363960671,1748947832174,-500.0,0.00016437,2]
[363960673,1748947832184,-500.0,0.00016437,2]
[363960675,1748947832193,-500.0,0.00016437,2]
[363960676,1748947832203,-500.0,0.00016437,2]
[363960677,1748947832213,-500.0,0.00016437,2]
[363960678,1748947832223,-198.75831735,0.00016437,2]
[363960679,1748947832234,-257.35692552,0.00016438,2]
[363960680,1748947832244,-430.0,0.00016438,2]
[363960681,1748947832254,-430.0,0.00016438,2]
[363960682,1748947832264,-440.0,0.00016438,2]
[363960683,1748947832273,-440.0,0.00016438,2]
[363960684,1748947832283,-430.0,0.00016438,2]
[363960685,1748947832292,-440.0,0.00016438,2]
[363960686,1748947832302,-430.0,0.00016438,2]
[363960687,1748947832311,-440.0,0.00016438,2]
[363960688,1748947832320,-464.73410924,0.00016438,2]
[363960689,1748947832329,-452.1441177,0.00016438,2]
[363960690,1748947832339,-440.0,0.00016438,2]
[363960691,1748947832349,-440.0,0.00016438,2]
[363960692,1748947832359,-430.70265601,0.00016438,2]
[363960693,1748947832369,-440.0,0.00016438,2]
[363960694,1748947832378,-440.0,0.00016438,2]
[363960695,1748947832387,-430.0,0.00016438,2]
[363960696,1748947832397,-430.0,0.00016438,2]
[363960697,1748947832406,-433.18924757,0.00016438,2]
[363960698,1748947832416,-430.72998668,0.00016438,2]
[363960699,1748947832426,-430.0,0.00016438,2]
[363960700,1748947832436,-440.0,0.00016438,2]
[363960701,1748947832446,-440.0,0.00016438,2]
[363960702,1748947832455,-430.0,0.00016438,2]
[363960703,1748947832465,-430.0,0.00016438,2]
[363960704,1748947832475,-440.0,0.00016438,2]
[363960705,1748947832486,-440.0,0.00016438,2]
[363960706,1748947832495,-440.0,0.00016438,2]
[363960707,1748947832505,-440.0,0.00016438,2]
[363960708,1748947832515,-440.0,0.00016438,2]
[363960709,1748947832524,-440.0,0.00016438,2]
[363960710,1748947832534,-310.34667501,0.00016438,2]
[363960711,1748947832544,-450.0,0.00016438,2]
[363960712,1748947832553,-170.0,0.00016438,2]
[363960713,1748947832564,-230.0,0.00016438,2]
[363960714,1748947832574,-440.0,0.00016438,2]
[363960715,1748947832583,-440.0,0.00016438,2]
[363960716,1748947832593,-440.0,0.00016438,2]
[363960717,1748947832603,-440.0,0.00016438,2]
[363960718,1748947832612,-430.0,0.00016438,2]
[363960719,1748947832622,-388.79222278,0.00016438,2]
[363960720,1748947832632,-430.0,0.00016438,2]
[363960721,1748947832642,-430.0,0.00016438,2]
[363960722,1748947832652,-341.82279311,0.00016438,2]
[363960723,1748947832662,-430.0,0.00016438,2]
[363960724,1748947832672,-401.38942698,0.00016438,2]
[363960725,1748947832682,-430.0,0.00016438,2]
[363960726,1748947832692,-281.41049981,0.00016438,2]
[363960727,1748947832701,-182.09002681,0.00016438,2]
[363960728,1748947832710,-440.0,0.00016438,2]
[363960729,1748947832720,-430.0,0.00016438,2]
[363960730,1748947832731,-420.0,0.00016438,2]
[363960731,1748947832741,-440.0,0.00016438,2]
[363960732,1748947832751,-430.0,0.00016438,2]
[363960733,1748947832761,-450.0,0.00016438,2]
[363960734,1748947832770,-430.0,0.00016438,2]
[363960735,1748947832780,-430.0,0.00016438,2]
[363960736,1748947832790,-440.0,0.00016438,2]
[363960737,1748947832800,-440.0,0.00016438,2]
[363960738,1748947832810,-430.0,0.00016438,2]
[363960739,1748947832819,-440.0,0.00016438,2]
[363960740,1748947832829,-420.0,0.00016438,2]
[363960741,1748947832839,-427.06822049,0.00016438,2]
[363960742,1748947832849,-430.0,0.00016438,2]
[363960743,1748947832859,-440.0,0.00016438,2]
[363960744,1748947832869,-400.0,0.00016438,2]
[363960745,1748947832880,-440.0,0.00016438,2]
[363960746,1748947832889,-430.0,0.00016438,2]
[363960747,1748947832899,-436.73781771,0.00016438,2]
[363960748,1748947832909,-430.0,0.00016438,2]
[363960749,1748947833046,-440.0,0.00016438,2]
[363960750,1748947833057,-403.48147798,0.00016438,2]
[363960751,1748947833068,-440.0,0.00016438,2]
[363960752,1748947833078,-430.0,0.00016438,2]
[363960753,1748947833088,-430.0,0.00016438,2]
[363960754,1748947833097,-430.0,0.00016438,2]
[363960755,1748947833107,-440.0,0.00016438,2]
[363960756,1748947833118,-430.0,0.00016438,2]
[363960757,1748947833128,-440.0,0.00016438,2]
[363960758,1748947833138,-440.0,0.00016438,2]
[363960759,1748947833148,-400.0,0.00016438,2]
[363960760,1748947833158,-432.63476517,0.00016438,2]
[363960761,1748947833168,-440.0,0.00016438,2]
[363960762,1748947833179,-432.55923825,0.00016438,2]
[363960763,1748947833190,-430.0,0.00016438,2]
[363960764,1748947833200,-430.0,0.00016438,2]
[363960765,1748947833210,-440.0,0.00016438,2]
[363960766,1748947833220,-440.0,0.00016438,2]
[363960767,1748947833231,-450.0,0.00016438,2]
[363960768,1748947833241,-440.0,0.00016438,2]
[363960769,1748947833252,-440.0,0.00016438,2]
[363960770,1748947833262,-440.0,0.00016438,2]
[363960771,1748947833273,-440.0,0.00016438,2]
[363960772,1748947833283,-484.01,0.00016438,2]
[363960773,1748947833293,-454.5369647,0.00016438,2]
[363960774,1748947833304,-440.0,0.00016438,2]
[363960775,1748947833314,-440.0,0.00016438,2]
[363960776,1748947833323,-440.0,0.00016438,2]
[363960777,1748947833333,-440.0,0.00016438,2]
[363960778,1748947833343,-430.0,0.00016438,2]
[363960779,1748947833354,-430.0,0.00016438,2]
[363960780,1748947833364,-440.0,0.00016438,2]
[363960781,1748947833373,-430.0,0.00016438,2]
[363960782,1748947833383,-440.0,0.00016438,2]
[363960783,1748947833393,-440.0,0.00016438,2]
[363960784,1748947833403,-430.0,0.00016438,2]
[363960785,1748947833413,-430.0,0.00016438,2]
[363960786,1748947833423,-440.0,0.00016438,2]
[363960787,1748947833434,-440.0,0.00016438,2]
[363960788,1748947833444,-440.0,0.00016438,2]
[363960789,1748947833454,-430.0,0.00016438,2]
[363960790,1748947833466,-440.0,0.00016438,2]
[363960791,1748947833477,-440.0,0.00016438,2]
[363960792,1748947833488,-235.30041474,0.00016438,2]
[363960793,1748947833498,-440.0,0.00016438,2]
[363960794,1748947833508,-430.0,0.00016438,2]
[363960795,1748947833518,-400.53216153,0.00016438,2]
[363960796,1748947833529,-440.0,0.00016438,2]
[363960797,1748947833539,-430.0,0.00016438,2]
[363960798,1748947833550,-439.95408627,0.00016438,2]
[363960799,1748947833560,-440.0,0.00016438,2]
[363960800,1748947833571,-455.41,0.00016438,2]
[363960801,1748947833582,-440.0,0.00016438,2]
[363960802,1748947833593,-440.0,0.00016438,2]
[363960803,1748947833603,-430.0,0.00016438,2]
[363960804,1748947833614,-440.0,0.00016438,2]
[363960805,1748947833624,-440.0,0.00016438,2]
[363960806,1748947833635,-430.0,0.00016438,2]
[363960807,1748947833645,-440.0,0.00016438,2]
[363960808,1748947833655,-293.12703312,0.00016438,2]
[363960809,1748947833665,-430.0,0.00016438,2]
[363960810,1748947833676,-400.0,0.00016438,2]
[363960811,1748947833686,-440.0,0.00016438,2]
[363960812,1748947833696,-500.0,0.00016438,2]
[363960813,1748947833706,-500.0,0.00016438,2]
[363960814,1748947833715,-500.0,0.00016438,2]
[363960815,1748947833726,-500.0,0.00016438,2]
[363960816,1748947833736,-500.0,0.00016438,2]
[363960817,1748947833747,-500.0,0.00016438,2]
[363960818,1748947833756,-500.0,0.00016438,2]
[363960819,1748947833767,-500.0,0.00016438,2]
[363960820,1748947833777,-431.40569225,0.00016438,2]
[363960821,1748947833787,-440.0,0.00016438,2]
[363960822,1748947833799,-440.0,0.00016438,2]
[363960823,1748947833808,-440.0,0.00016438,2]
[363960824,1748947833818,-301.82324122,0.00016438,2]
[363960825,1748947833828,-440.0,0.00016438,2]
[363960826,1748947833838,-434.02834156,0.00016438,2]
[363960827,1748947833848,-500.0,0.00016438,2]
[363960828,1748947833859,-500.0,0.00016438,2]
[363960829,1748947833868,-500.0,0.00016438,2]
[363960830,1748947833879,-500.0,0.00016438,2]
[363960831,1748947833888,-500.0,0.00016438,2]
[363960832,1748947833898,-158.91657375,0.00016438,2]
[363960833,1748947833909,-440.0,0.00016438,2]
[363960834,1748947833919,-430.0,0.00016438,2]
[363960835,1748947833932,-430.0,0.00016438,2]
[363960836,1748947833942,-440.0,0.00016438,2]
[363960837,1748947833952,-440.0,0.00016438,2]